bitfinex/quotes_ETHUSD_20240716
["timestamp","ask_amount","ask_price","bid_price","bid_amount"]
[1721095088337,0.27847349,3484.2,3483.9,2.87033]
[1721095088491,0.0279401,3484.2,3483.9,2.87033]
[1721095088691,2.4231,3484.1,3483.7,2.87047]
[1721095088930,0.02793956,3484.0,3483.7,2.87047]
[1721095090717,0.02793956,3484.0,3483.5,3.0]
[1721095091026,0.93116476,3484.0,3483.5,5.87065]
[1721095091227,0.02793956,3484.0,3483.5,5.87065]
[1721095091519,0.02793956,3484.0,3483.6,2.87051]
[1721095091688,0.02793956,3484.0,3483.7,3.0]
[1721095091887,0.02793956,3484.0,3483.7,5.87048]
[1721095092418,10.30329259,3484.3,3483.7,5.87048]
[1721095092629,0.02703537,3483.9,3483.7,5.87048]
[1721095092789,12.12835463,3484.3,3483.7,5.87048]
[1721095092790,10.30329259,3484.3,3483.7,5.87048]
[1721095092998,0.0270351,3483.8,3483.7,5.87048]
[1721095093194,10.30329259,3484.3,3483.8,2.87039]
[1721095093507,1.67451327,3484.2,3483.8,2.87039]
[1721095093711,9.4,3484.3,3483.8,2.87039]
[1721095093712,10.30329259,3484.3,3483.8,2.87039]
[1721095094047,10.30311944,3484.3,3483.8,2.87039]
[1721095094524,9.4,3484.3,3484.2,1.01]
[1721095094728,9.4,3484.3,3484.2,3.88009]
[1721095096429,9.4,3484.3,3484.2,6.75018]
[1721095096729,9.4,3484.3,3484.2,12.15888]
[1721095097236,12.67008218,3485.1,3484.6,2.86976]
[1721095097408,2.3676,3484.9,3484.2,4.01]
[1721095097609,2.3676,3484.9,3484.2,1.01]
[1721095098239,2.3676,3484.9,3484.1,3.0]
[1721095098467,2.3676,3484.9,3484.3,2.87]
[1721095098607,2.3676,3484.9,3484.4,3.0]
[1721095098944,2.3676,3484.9,3484.4,5.86993]
[1721095100010,2.3676,3485.0,3484.4,5.86993]
[1721095100906,2.3676,3485.0,3484.5,2.86984]
[1721095101232,0.0270841,3484.9,3484.6,3.0]
[1721095102545,0.0270841,3484.9,3484.6,2.86969]
[1721095103806,0.0270841,3484.9,3484.5,5.86983]
[1721095104007,0.0270841,3484.9,3484.5,8.73961]
[1721095104318,0.0270841,3484.9,3484.6,2.86975]
[1721095104749,0.0270841,3484.9,3484.7,2.86967]
[1721095105048,9.4,3485.1,3484.7,2.86967]
[1721095105224,0.02721326,3484.8,3484.7,2.86967]
[1721095105414,11.07303545,3485.1,3484.7,2.86967]
[1721095105615,0.02721326,3484.8,3484.7,2.86967]
[1721095105815,11.07303545,3485.1,3484.7,2.86967]
[1721095106016,0.02721326,3484.8,3484.7,2.86967]
[1721095106214,11.07303545,3485.1,3484.7,2.86967]
[1721095106445,0.02729529,3484.8,3484.7,2.86967]
[1721095106652,9.4,3485.1,3484.8,2.86957]
[1721095108967,9.4,3485.1,3484.5,5.86983]
[1721095108968,9.4,3485.1,3484.6,2.86975]
[1721095109121,9.4,3485.1,3484.5,3.0]
[1721095109122,9.4,3485.1,3485.0,2.86944]
[1721095112281,9.4,3485.1,3484.7,2.86968]
[1721095112487,9.4,3485.1,3484.8,3.0]
[1721095113548,9.4,3485.1,3484.8,5.86959]
[1721095113899,9.4,3485.1,3485.0,2.86944]
[1721095116084,9.42738465,3485.1,3485.0,2.86944]
[1721095117899,9.42738465,3485.1,3485.0,5.73888]
[1721095118059,9.42738465,3485.1,3485.0,8.73888]
[1721095118255,9.4,3485.1,3485.0,9.74788]
[1721095118461,9.42738508,3485.1,3485.0,9.74788]
[1721095119292,0.02738508,3485.1,3485.0,12.61732]
[1721095119496,0.02738508,3485.1,3485.0,15.59842]
[1721095119847,9.4,3485.9,3485.8,2.86878]
[1721095120124,9.4,3485.9,3485.6,2.86894]
[1721095120341,9.42741019,3485.9,3485.4,2.86911]
[1721095120634,0.02740992,3485.8,3485.5,3.0]
[1721095120920,2.3249,3485.7,3485.5,3.0]
[1721095121290,0.02740937,3485.6,3485.5,3.0]
[1721095123305,1.20264031,3485.6,3485.1,7.37]
[1721095123617,1.20264031,3485.6,3484.3,3.36649682]
[1721095123618,1.20264031,3485.6,3484.7,2.86968]
[1721095123800,1.20264031,3485.6,3485.0,2.86941]
[1721095124006,1.20264031,3485.6,3485.1,2.86935]
[1721095124382,0.02740937,3485.6,3485.3,2.86917]
[1721095125309,0.02740937,3485.6,3485.4,2.8691]
[1721095126416,9.4,3485.9,3485.4,2.8691]
[1721095126818,0.02750318,3485.8,3485.4,2.8691]
[1721095128114,0.02750318,3485.8,3485.5,2.86901]
[1721095128287,0.02750318,3485.8,3485.3,0.05738202]
[1721095128484,0.02750318,3485.8,3485.7,2.86886]
[1721095128907,0.02750318,3485.8,3485.7,5.73772]
[1721095130796,0.02750318,3485.8,3485.7,8.73772]
[1721095131020,9.4,3485.9,3485.8,5.73756]
[1721095131207,9.4,3485.9,3485.8,8.73756]
[1721095135840,9.4,3485.9,3485.8,5.86878]
[1721095136048,9.42761792,3485.9,3485.8,5.86878]
[1721095137831,9.42761792,3485.9,3485.8,8.73756]
[1721095140260,9.42761792,3485.9,3485.8,5.86878]
[1721095142469,9.42761792,3485.9,3485.8,6.87778]
[1721095144022,9.42761792,3485.9,3485.8,5.86878]
[1721095144218,9.42761792,3485.9,3485.8,3.0]
[1721095144465,9.42761792,3485.9,3485.7,4.009]
[1721095144624,9.42761792,3485.9,3485.7,6.87783]
[1721095144830,9.42761792,3485.9,3485.8,2.86878]
[1721095145026,9.42761792,3485.9,3485.8,5.86878]
[1721095146786,9.42761792,3485.9,3485.8,8.73756]
[1721095148953,9.42761792,3485.9,3485.8,5.86878]
[1721095149573,9.42761792,3485.9,3485.8,3.0]
[1721095150500,12.77217971,3485.9,3485.4,5.86908]
[1721095150795,11.82941792,3485.9,3485.4,5.86908]
[1721095151346,11.82941792,3485.9,3485.5,2.869]
[1721095151705,11.82941792,3485.9,3485.4,3.0]
[1721095151706,11.82941792,3485.9,3485.6,3.0]
[1721095151979,11.82941792,3485.9,3485.3,2.86918]
[1721095151980,2.4612,3485.8,3485.4,3.0]
[1721095152184,2.4612,3485.8,3485.4,5.86908]
[1721095152341,0.02752284,3485.7,3485.4,5.86908]
[1721095152743,2.4612,3485.8,3485.4,3.0]
[1721095152989,0.02752256,3485.6,3485.1,1.009]
[1721095153194,2.51843435,3485.8,3485.1,1.009]
[1721095153482,2.4612,3485.8,3485.0,2.86941]
[1721095153695,0.02752284,3485.7,3485.2,1.009]
[1721095153989,0.02752284,3485.7,3485.2,4.009]
[1721095154142,1.59330085,3485.7,3485.2,4.009]
[1721095154870,2.4612,3485.6,3485.0,3.0]
[1721095155042,2.48861018,3485.6,3485.0,3.0]
[1721095155883,0.9002673,3485.4,3485.0,3.0]
[1721095156067,2.80675305,3485.5,3484.8,5.8696]
[1721095156068,3.42687524,3485.5,3484.8,5.8696]
[1721095156400,0.02737831,3485.3,3484.8,5.8696]
[1721095156695,0.02737804,3485.2,3484.8,5.8696]
[1721095156987,5.68011727,3485.5,3484.8,5.8696]
[1721095157279,0.02737858,3485.4,3484.8,5.8696]
[1721095157861,0.02737858,3485.4,3484.9,1.009]
[1721095158063,0.02737858,3485.4,3485.1,1.009]
[1721095158765,0.02737858,3485.4,3485.0,3.0]
[1721095163807,0.02737858,3485.4,3485.1,1.009]
[1721095164006,0.02737858,3485.4,3485.2,2.86927]
[1721095164191,0.02737858,3485.4,3485.0,3.0]
[1721095164192,0.02737858,3485.4,3485.3,3.87819]
[1721095164365,9.4,3485.6,3485.3,3.87819]
[1721095164565,9.4,3485.6,3485.5,1.009]
[1721095164977,9.4,3485.6,3485.3,1.009]
[1721095165871,9.4,3485.6,3485.1,1.009]
[1721095165872,10.67145957,3485.6,3485.1,1.009]
[1721095166399,10.67145957,3485.6,3485.1,4.009]
[1721095166824,9.4,3485.6,3485.3,1.009]
[1721095167119,9.4,3485.6,3485.5,1.009]
[1721095167871,9.4,3485.6,3485.3,3.87811]
[1721095168607,9.4,3485.6,3485.5,1.009]
[1721095172437,9.4,3485.6,3485.5,3.87802]
[1721095172583,9.4,3485.6,3485.5,10.29704]
[1721095172783,9.4,3486.3,3486.0,2.8686]
[1721095172982,9.4,3486.3,3486.0,3.8776]
[1721095173181,0.02726,3486.2,3486.0,3.8776]
[1721095173684,0.02731483,3486.1,3486.0,2.8686]
[1721095173888,9.4,3486.3,3486.0,2.8686]
[1721095174119,0.0273151,3486.2,3486.0,2.8686]
[1721095174325,9.4,3486.3,3486.0,2.8686]
[1721095174502,0.0273151,3486.2,3486.0,2.8686]
[1721095174828,9.4,3486.3,3486.0,2.8686]
[1721095175008,0.02731483,3486.1,3486.0,2.8686]
[1721095175209,9.4,3486.3,3486.0,2.8686]
[1721095175389,0.0273573,3486.1,3486.0,2.8686]
[1721095175591,9.4,3486.3,3486.0,3.8776]
[1721095175816,0.02735866,3486.1,3486.0,3.8776]
[1721095176020,9.4,3486.3,3486.0,3.8776]
[1721095176205,0.02735866,3486.1,3486.0,3.8776]
[1721095176527,9.4,3486.3,3486.0,3.8776]
[1721095177123,0.02735893,3486.2,3486.0,3.8776]
[1721095177420,9.4,3486.3,3486.0,3.8776]
[1721095177626,0.02735866,3486.1,3486.0,3.8776]
[1721095178132,9.4,3486.3,3486.0,3.8776]
[1721095178433,0.02735901,3486.2,3486.0,3.8776]
[1721095178837,9.4,3486.3,3486.0,3.8776]
[1721095179040,0.02735939,3486.1,3486.0,3.8776]
[1721095179207,9.4,3486.3,3486.0,3.8776]
[1721095179407,0.02735939,3486.1,3486.0,3.8776]
[1721095179607,9.4,3486.3,3486.0,3.8776]
[1721095179828,0.02735947,3486.1,3486.0,3.8776]
[1721095180016,10.30181401,3486.3,3486.0,1.009]
[1721095180220,0.02735947,3486.1,3486.0,1.009]
[1721095180428,9.4,3486.3,3486.0,1.009]
[1721095180651,0.02735947,3486.1,3486.0,1.009]
[1721095180836,9.4,3486.3,3486.0,1.009]
[1721095181060,0.02735947,3486.1,3486.0,1.009]
[1721095181504,9.4,3486.3,3486.0,1.009]
[1721095181711,0.02735974,3486.2,3486.0,1.009]
[1721095181946,9.4,3486.3,3486.0,1.009]
[1721095182149,0.02735974,3486.2,3486.0,1.009]
[1721095182311,9.4,3486.3,3486.0,1.009]
[1721095182505,0.02735974,3486.2,3486.0,1.009]
[1721095182710,9.4,3486.3,3486.0,1.009]
[1721095182932,0.02735974,3486.2,3486.0,1.009]
[1721095183128,9.4,3486.3,3486.0,1.009]
[1721095183441,0.02735974,3486.2,3486.0,1.009]
[1721095183753,9.4,3486.3,3486.0,1.009]
[1721095183963,0.02735974,3486.2,3486.0,1.009]
[1721095184252,9.4,3486.3,3486.0,3.8776]
[1721095184720,0.02735974,3486.2,3486.0,3.8776]
[1721095184917,9.4,3486.3,3486.1,1.009]
[1721095185125,0.02750925,3486.2,3486.1,1.009]
[1721095185318,9.4,3486.3,3486.1,1.009]
[1721095185515,0.02750838,3486.2,3486.1,1.009]
[1721095185719,9.4,3486.3,3486.1,1.009]
[1721095185950,0.02750838,3486.2,3486.1,1.009]
[1721095186114,0.02750838,3486.2,3486.1,3.87753]
[1721095186428,9.4,3486.3,3486.1,1.009]
[1721095186625,0.02750728,3486.2,3486.1,1.009]
[1721095187158,0.0275068,3486.2,3486.1,1.009]
[1721095187354,9.4,3486.3,3486.1,1.009]
[1721095187562,9.4,3486.3,3486.1,3.87753]
[1721095187765,0.02751644,3486.2,3486.1,3.87753]
[1721095187919,9.4,3486.3,3486.1,3.87753]
[1721095188123,0.02751483,3486.2,3486.1,3.87753]
[1721095188324,9.4,3486.3,3486.1,3.87753]
[1721095188537,0.02751162,3486.2,3486.1,3.87753]
[1721095188853,9.4,3486.3,3486.1,1.009]
[1721095189219,0.02749805,3486.2,3486.1,1.009]
[1721095189656,9.4,3486.3,3486.1,1.009]
[1721095189820,0.02748498,3486.2,3486.1,1.009]
[1721095190242,9.4,3486.3,3486.1,1.009]
[1721095190455,0.02748498,3486.2,3486.1,1.009]
[1721095190650,0.02748498,3486.2,3486.1,3.87753]
[1721095190851,9.4,3486.3,3486.1,3.87753]
[1721095191057,0.02747508,3486.2,3486.1,3.87753]
[1721095191471,9.4,3486.3,3486.1,3.87753]
[1721095191678,0.02747026,3486.2,3486.1,3.87753]
[1721095192046,9.4,3486.3,3486.1,3.87753]
[1721095192249,0.02747026,3486.2,3486.1,3.87753]
[1721095192779,0.02744016,3486.2,3486.1,3.87753]
[1721095193463,9.4,3486.3,3486.1,3.87753]
[1721095193670,0.02743957,3486.2,3486.1,3.87753]
[1721095193983,9.4,3486.3,3486.1,3.87753]
[1721095194276,0.02742277,3486.2,3486.1,3.87753]
[1721095194646,9.4,3486.3,3486.1,3.87753]
[1721095194847,0.02742277,3486.2,3486.1,3.87753]
[1721095195241,9.4,3486.3,3486.1,3.87753]
[1721095195460,0.02742277,3486.2,3486.1,3.87753]
[1721095195865,9.4,3486.3,3486.1,3.87753]
[1721095196070,0.02743081,3486.2,3486.1,1.009]
[1721095196477,2.3241,3486.2,3485.9,1.009]
[1721095196657,2.35153081,3486.2,3485.9,4.009]
[1721095197264,2.35153081,3486.2,3485.8,3.0]
[1721095197468,2.35153081,3486.2,3485.7,4.009]
[1721095199968,2.35153081,3486.2,3485.9,1.009]
[1721095200170,1.26533197,3486.1,3485.7,4.009]
[1721095200368,1.26533197,3486.1,3485.5,4.009]
[1721095201224,2.35153081,3486.2,3485.7,1.009]
[1721095201991,2.35153081,3486.2,3485.7,4.009]
[1721095202781,2.35153081,3486.2,3485.7,3.0]
[1721095202988,2.35153081,3486.2,3485.8,1.009]
[1721095203599,0.02743081,3486.2,3485.8,3.87775]
[1721095204971,0.02743081,3486.2,3485.8,1.009]
[1721095205177,3.40842197,3486.1,3485.8,1.009]
[1721095206778,0.02743081,3486.2,3485.8,1.009]
[1721095207185,0.02743081,3486.2,3485.8,2.86873]
[1721095207484,0.02743081,3486.2,3486.1,1.009]
[1721095207696,0.02743081,3486.2,3485.9,1.009]
[1721095208728,0.02743081,3486.2,3485.7,1.009]
[1721095208729,0.92921969,3486.2,3485.7,1.009]
[1721095208874,2.3086,3486.0,3485.0,4.36615175]
[1721095209076,2.53584164,3486.1,3485.1,3.0]
[1721095209077,2.3086,3485.8,3485.1,3.0]
[1721095209430,1.79059977,3485.7,3485.1,3.0]
[1721095209573,1.15195919,3485.6,3485.1,3.0]
[1721095209912,2.3086,3485.8,3485.5,1.009]
[1721095210129,0.90178888,3486.0,3485.5,3.87799]
[1721095210411,1.15185465,3485.9,3485.7,1.009]
[1721095210636,0.90178888,3486.0,3485.7,1.009]
[1721095210924,0.90178888,3486.0,3485.5,2.86899]
[1721095210925,2.3086,3485.8,3484.9,2.4872]
[1721095211212,0.90178888,3485.5,3485.2,1.009]
[1721095212477,0.90178888,3485.6,3485.2,1.009]
[1721095212791,0.2501781,3485.5,3485.2,1.009]
[1721095212976,1.15196698,3485.5,3485.2,1.009]
[1721095213176,2.72621054,3485.6,3485.2,1.009]
[1721095213382,0.25018543,3485.5,3485.2,1.009]
[1721095213896,2.72621054,3485.6,3485.2,1.009]
[1721095214503,0.90178888,3485.6,3485.4,1.009]
[1721095214886,0.90305643,3485.6,3485.2,1.009]
[1721095215103,0.25018664,3485.5,3485.2,1.009]
[1721095215322,0.90305643,3485.6,3485.2,1.009]
[1721095215475,0.90305643,3485.6,3485.4,1.009]
[1721095215676,1.15321428,3485.5,3485.0,2.86943]
[1721095215913,0.25022406,3485.4,3485.2,1.009]
[1721095216423,0.25022406,3485.4,3484.9,3.0]
[1721095216424,2.4352,3485.3,3484.9,4.009]
[1721095216626,2.4352,3485.3,3484.9,1.009]
[1721095217174,2.4352,3485.3,3485.1,1.009]
[1721095217377,0.02717291,3485.2,3485.1,1.009]
[1721095217682,0.90305643,3485.5,3485.1,1.009]
[1721095217909,0.90305643,3485.5,3485.3,1.009]
[1721095217910,0.02701106,3485.4,3485.3,1.009]
[1721095218280,0.90274173,3485.6,3485.3,3.87812]
[1721095218480,0.90274173,3485.8,3485.5,1.009]
[1721095219440,1.15290665,3485.7,3485.5,1.009]
[1721095219577,0.90274173,3485.7,3485.3,3.87812]
[1721095220280,10.60365564,3485.9,3485.5,1.009]
[1721095220281,10.30274173,3485.9,3485.5,1.009]
[1721095220593,1.15285261,3485.8,3485.5,3.87801]
[1721095220795,0.90274173,3485.8,3485.5,3.87801]
[1721095221280,0.9024298,3485.8,3485.5,3.87801]
[1721095221480,9.4,3485.9,3485.5,3.87801]
[1721095221686,10.3024298,3485.9,3485.5,3.87801]
[1721095221886,9.4,3485.9,3485.5,3.87801]
[1721095222417,1.15256221,3485.8,3484.9,5.8695]
[1721095222615,0.9024298,3485.5,3484.9,4.009]
[1721095222795,3.7714598,3485.5,3484.9,3.0]
[1721095222992,3.7714598,3485.5,3484.7,4.009]
[1721095223205,0.05723435,3485.4,3484.6,7.37]
[1721095223508,0.9024298,3485.1,3484.6,7.37]
[1721095223688,5.28757,3485.2,3484.6,1.009]
[1721095223689,3.3207298,3485.2,3484.6,1.009]
[1721095223888,3.3207298,3485.2,3484.8,1.009]
[1721095224317,2.4183,3485.2,3484.8,1.009]
[1721095224929,0.02704205,3485.1,3484.8,1.009]
[1721095226198,0.02704205,3485.1,3485.0,1.009]
[1721095226604,2.86915,3485.4,3484.8,1.009]
[1721095226810,0.02704191,3485.1,3484.8,1.009]
[1721095227003,3.7715798,3485.4,3484.8,1.009]
[1721095227220,0.02704163,3485.0,3484.8,1.009]
[1721095227422,2.86915,3485.4,3484.8,1.009]
[1721095227736,3.77090322,3485.4,3484.8,1.009]
[1721095227916,0.02704245,3485.3,3484.8,1.009]
[1721095229189,3.79445202,3485.3,3484.8,1.009]
[1721095229523,0.92526202,3485.3,3484.8,1.009]
[1721095229829,0.92526202,3485.3,3484.5,3.0]
[1721095229830,0.02704245,3485.3,3485.0,1.009]
[1721095230129,3.77080322,3485.5,3485.0,1.009]
[1721095230305,0.02704232,3485.2,3485.0,1.009]
[1721095230652,2.86905,3485.5,3485.0,1.009]
[1721095230930,3.77047008,3485.5,3485.0,1.009]
[1721095231103,0.02704287,3485.4,3485.0,1.009]
[1721095235056,3.21672008,3485.6,3485.0,1.009]
[1721095235231,0.0270072,3485.3,3485.0,1.009]
[1721095235416,0.90142008,3485.5,3484.8,1.009]
[1721095235620,0.02700692,3485.2,3484.8,3.8786]
[1721095235816,0.90142008,3485.4,3484.8,3.8786]
[1721095236018,0.02700665,3485.1,3484.8,3.8786]
[1721095236195,0.90142008,3485.5,3484.8,3.8786]
[1721095236405,0.02700711,3485.0,3484.8,3.8786]
[1721095236605,0.90142008,3485.5,3484.8,3.8786]
[1721095236804,0.02700684,3484.9,3484.8,3.8786]
[1721095237036,0.90142008,3485.4,3484.9,2.86951]
[1721095237201,9.4,3485.5,3484.9,2.86951]
[1721095238056,10.30141812,3485.5,3484.9,2.86951]
[1721095238209,9.4,3485.5,3484.9,2.86951]
[1721095238814,9.4,3485.5,3485.2,1.009]
[1721095239015,9.4,3485.5,3485.4,3.87811]
[1721095239334,9.4,3485.5,3485.4,9.07642]
[1721095239512,9.4,3485.5,3485.4,6.74722]
[1721095239849,9.4,3485.5,3485.3,2.86916]
[1721095240012,9.4,3485.5,3485.4,2.86911]
[1721095240755,9.4,3485.5,3485.4,3.87811]
[1721095241115,9.4,3485.5,3485.4,9.07642]
[1721095241341,9.4,3485.5,3485.4,12.07642]
[1721095243070,9.4,3485.5,3485.4,3.0]
[1721095243278,9.4,3485.5,3485.3,3.0]
[1721095243978,9.4,3485.5,3485.3,5.86916]
[1721095245277,9.4,3485.5,3485.3,3.0]
[1721095245444,9.4,3485.5,3485.2,1.009]
[1721095245645,9.4,3485.5,3485.1,5.86934]
[1721095245646,9.4,3485.5,3485.1,3.0]
[1721095246052,9.4,3485.5,3485.2,3.0]
[1721095246255,9.4,3485.5,3485.2,1.009]
[1721095246491,9.4,3485.5,3485.4,1.009]
[1721095246857,9.4,3485.5,3485.3,3.0]
[1721095247345,9.4,3485.5,3485.2,4.009]
[1721095247680,9.4,3485.5,3485.2,6.87826]
[1721095247877,9.4,3485.5,3485.4,1.009]
[1721095248075,9.4,3485.5,3485.4,4.009]
[1721095248691,9.4,3485.5,3485.4,6.87811]
[1721095249447,9.4,3485.5,3485.4,3.87811]
[1721095249648,9.4,3485.5,3485.4,6.87811]
[1721095251566,9.4,3485.5,3485.4,4.009]
[1721095251905,9.4,3485.5,3485.4,1.009]
[1721095252059,9.4,3485.5,3485.4,4.009]
[1721095253474,9.4,3485.5,3485.4,6.87811]
[1721095254674,9.42713437,3485.5,3485.4,6.87811]
[1721095255520,9.42713437,3485.5,3485.4,4.009]
[1721095255712,9.42713437,3485.5,3484.8,1.49680053]
[1721095255713,9.42713437,3485.5,3485.2,1.009]
[1721095257725,10.61269781,3485.5,3485.2,1.009]
[1721095258019,14.38450882,3485.5,3484.8,3.8786]
[1721095258374,14.38450882,3485.5,3485.0,1.009]
[1721095258821,0.25024972,3485.4,3485.0,1.009]
[1721095259208,0.0270827,3485.3,3485.0,1.009]
[1721095259778,14.35737445,3485.5,3485.0,1.009]
[1721095259985,0.02708243,3485.2,3485.0,1.009]
[1721095260282,0.02708215,3485.1,3485.0,1.009]
[1721095260503,0.90276101,3485.4,3485.0,1.009]
[1721095260709,1.25483689,3485.3,3484.8,1.009]
[1721095260894,2.1575979,3485.3,3484.8,1.009]
[1721095262931,2.3838,3485.1,3484.8,1.009]
[1721095263235,0.02708188,3485.0,3484.8,1.009]
[1721095263520,0.02708188,3485.0,3484.7,1.009]
[1721095264446,0.02708188,3485.0,3484.4,2.86987]
[1721095264447,0.02708188,3485.0,3484.9,1.009]
[1721095265149,0.02708276,3485.0,3484.9,1.009]
[1721095265351,2.4901,3485.5,3484.9,1.009]
[1721095265510,0.56298085,3485.4,3484.9,1.009]
[1721095266351,0.02708385,3485.4,3485.1,1.009]
[1721095267096,0.92975395,3485.4,3485.1,1.009]
[1721095267896,0.92975395,3485.4,3484.9,1.009]
[1721095268747,0.25026986,3485.3,3484.9,1.009]
[1721095268939,0.02603797,3485.2,3484.9,1.009]
[1721095269147,0.90267783,3485.3,3484.9,1.009]
[1721095269387,0.02603797,3485.2,3484.9,1.009]
[1721095269876,1.03344083,3485.3,3484.9,1.009]
[1721095270086,0.0260377,3485.1,3484.9,1.009]
[1721095270390,0.02603743,3485.0,3484.9,1.009]
[1721095270890,3.77178783,3485.4,3484.9,1.009]
[1721095271177,1.28372128,3485.3,3484.9,1.009]
[1721095271381,3.92867908,3485.3,3484.9,1.009]
[1721095273374,4.8314077,3485.3,3484.9,1.009]
[1721095273550,0.25032363,3485.2,3484.9,1.009]
[1721095273742,0.02603818,3485.1,3484.9,1.009]
[1721095274370,4.80536945,3485.3,3484.9,1.009]
[1721095274603,2.31243791,3485.0,3484.9,1.009]
[1721095274910,2.2864,3485.7,3484.9,3.8785]
[1721095275209,0.90272862,3485.9,3485.6,1.009]
[1721095275507,2.2864,3486.0,3485.6,1.009]
[1721095276071,3.18895712,3486.0,3485.6,1.009]
[1721095276702,2.2864,3486.0,3485.6,1.009]
[1721095277900,0.90255712,3486.2,3485.8,1.009]
[1721095278213,3.25025712,3486.4,3486.0,1.009]
[1721095278571,1.15257299,3486.3,3486.0,1.009]
[1721095278800,2.3477,3486.4,3486.0,1.009]
[1721095278801,3.25025712,3486.4,3486.0,1.009]
[1721095279021,0.25000627,3486.3,3485.8,1.009]
[1721095279228,3.25025712,3486.4,3485.8,1.009]
[1721095279434,4.4196432,3486.4,3485.8,1.009]
[1721095279753,0.90255712,3486.2,3485.6,4.009]
[1721095280038,0.90255712,3486.2,3485.8,1.009]
[1721095280810,3.77094712,3486.3,3485.8,1.009]
[1721095281054,1.15258157,3486.2,3485.8,1.009]
[1721095281233,0.90255712,3486.2,3485.8,1.009]
[1721095281413,3.77094712,3486.3,3485.8,1.009]
[1721095281602,0.90255712,3486.3,3485.8,1.009]
[1721095281802,1.15261847,3486.2,3485.6,4.009]
[1721095282029,0.90255712,3486.3,3485.6,1.009]
[1721095282440,1.15262281,3486.2,3485.6,1.009]
[1721095282605,0.90255712,3486.2,3485.6,1.009]
[1721095282942,0.90255712,3486.3,3485.8,1.009]
[1721095283098,5.21605,3486.4,3485.8,1.009]
[1721095283099,6.11860712,3486.4,3485.8,1.009]
[1721095283303,3.75898834,3486.3,3485.8,1.009]
[1721095283531,4.66154546,3486.3,3485.6,4.009]
[1721095283746,2.86846,3486.2,3485.4,1.009]
[1721095283928,2.3477,3486.0,3485.4,4.009]
[1721095284101,2.3477,3486.0,3485.3,2.86918]
[1721095284102,2.3477,3485.5,3484.7,10.23965]
[1721095284306,6.11935712,3485.5,3484.8,1.009]
[1721095284515,0.90255712,3485.4,3484.8,1.009]
[1721095284715,3.77167712,3485.4,3484.8,1.009]
[1721095284920,0.02623714,3485.3,3484.8,1.009]
[1721095286542,0.02623714,3485.3,3485.0,1.009]
[1721095288240,0.02623714,3485.3,3484.8,3.0]
[1721095289857,4.57033554,3485.3,3484.8,3.0]
[1721095290060,2.86928,3485.2,3484.3,2.87]
[1721095290245,2.86928,3485.2,3484.4,3.0]
[1721095290445,0.02616589,3485.1,3484.4,3.0]
[1721095292572,3.22865438,3485.0,3484.4,3.0]
[1721095292720,5.19597,3484.6,3483.8,7.37]
[1721095292920,5.19597,3484.6,3483.7,2.87049]
[1721095292921,0.05723435,3484.5,3483.7,2.87049]
[1721095293118,2.86999,3484.4,3483.4,4.7674]
[1721095293417,0.99937937,3484.3,3483.4,2.87074]
[1721095293836,2.87029,3484.0,3483.0,2.422]
[1721095294056,5.19661,3483.9,3483.0,2.87102]
[1721095294261,5.22234255,3483.9,3483.0,2.87102]
[1721095296469,5.22234255,3483.9,3483.1,3.0]
[1721095296852,0.02573255,3483.9,3483.4,2.87074]
[1721095297175,2.87008,3484.3,3483.5,5.87067]
[1721095297590,2.89584278,3484.2,3483.5,3.0]
[1721095297806,3.70503206,3484.2,3483.4,3.0]
[1721095297949,3.70503206,3484.2,3483.5,2.87066]
[1721095297950,0.83492206,3484.2,3483.5,2.87066]
[1721095298149,0.02573278,3484.2,3483.5,2.87066]
[1721095298371,5.19617,3484.4,3483.5,2.87066]
[1721095298980,0.02553335,3484.3,3483.5,2.87066]
[1721095300084,0.02553335,3484.3,3483.6,2.87058]
[1721095300312,0.02553335,3484.3,3483.4,3.0]
[1721095300313,2.89556335,3484.3,3483.4,3.0]
[1721095300494,0.02553335,3484.3,3483.4,3.0]
[1721095300673,0.90097554,3484.7,3483.9,2.422]
[1721095300873,2.3262,3484.8,3484.1,2.87018]
[1721095301201,2.86938,3485.1,3483.9,5.29228]
[1721095301353,2.8696,3484.8,3484.0,3.0]
[1721095301560,5.25312435,3484.7,3484.0,3.0]
[1721095301751,5.19589,3484.7,3483.8,2.87036]
[1721095301952,5.25312435,3484.7,3483.9,3.0]
[1721095302147,2.3262,3484.7,3483.9,3.0]
[1721095302351,2.3262,3484.7,3483.8,3.0]
[1721095302352,0.52530344,3484.6,3483.8,3.0]
[1721095302574,2.86985,3484.5,3483.8,3.0]
[1721095302783,2.92708435,3484.5,3483.8,3.0]
[1721095302995,2.92708435,3484.5,3483.6,3.0]
[1721095303161,2.92708435,3484.5,3483.2,10.2409]
[1721095303162,2.87024,3484.1,3483.2,10.2409]
[1721095303357,2.87024,3484.1,3483.2,2.8709]
[1721095304351,5.24887,3484.0,3483.2,2.8709]
[1721095304549,5.24887,3484.0,3483.3,3.0]
[1721095305493,2.87034,3483.9,3483.3,3.0]
[1721095305649,0.524894,3483.8,3483.0,2.87107]
[1721095306979,0.524894,3483.8,3483.1,3.0]
[1721095307346,3.395324,3483.8,3483.1,3.0]
[1721095307584,3.395324,3483.8,3483.0,5.87102]